fUST/lending_fUST_20250722
["ID","MTS","AMOUNT","RATE_DAILY","PERIOD"]
[373876476,1753134649660,-1376.03,0.00019349,2]
[373876477,1753134649669,-888.49,0.00019349,2]
[373876478,1753134649679,-460.0,0.00019349,2]
[373876479,1753134649689,-1715.88,0.00019349,2]
[373876480,1753134649699,-280.65641991,0.00019373,2]
[373876481,1753134649709,-500.0,0.00019373,2]
[373876482,1753134649718,-500.0,0.00019373,2]
[373876483,1753134649728,-500.0,0.00019373,2]
[373876484,1753134649738,-500.0,0.00019373,2]
[373876485,1753134649748,-500.0,0.00019373,2]
[373876486,1753134649757,-500.0,0.00019373,2]
[373876487,1753134649766,-500.0,0.00019373,2]
[373876488,1753134649776,-501.9099735,0.00019373,2]
[373876489,1753134649786,-500.0,0.00019373,2]
[373876490,1753134649795,-500.0,0.00019373,2]
[373876491,1753134649805,-500.0,0.00019373,2]
[373876492,1753134649814,-500.0,0.00019373,2]
[373876493,1753134649823,-500.0,0.00019373,2]
[373876495,1753134649833,-500.0,0.00019373,2]
[373876497,1753134649842,-500.0,0.00019373,2]
[373876499,1753134649851,-151.0,0.00019373,2]
[373876501,1753134649861,-151.0,0.00019373,2]
[373876503,1753134649870,-153.526373,0.00019373,2]
[373876505,1753134649879,-211.4,0.00019373,2]
[373876508,1753134649889,-211.4,0.00019373,2]
[373876510,1753134649899,-151.0,0.00019373,2]
[373876512,1753134649908,-151.0,0.00019373,2]
[373876514,1753134649918,-151.0,0.000194,2]
[373876516,1753134649927,-151.0,0.00019443,2]
[373876518,1753134649936,-151.0,0.00019443,2]
[373876520,1753134649946,-460.0,0.00019446,2]
[373876522,1753134649956,-460.0,0.00019446,2]
[373876524,1753134649965,-460.0,0.00019446,2]
[373876526,1753134649974,-488.33,0.00019446,2]
[373876528,1753134649983,-542.3,0.00019446,2]
[373876530,1753134649993,-2702.83,0.00019446,2]
[373876532,1753134650003,-460.0,0.00019447,2]
[373876534,1753134650012,-460.0,0.00019447,2]
[373876536,1753134650021,-460.0,0.00019447,2]
[373876538,1753134650031,-460.0,0.00019447,2]
[373876540,1753134650040,-460.0,0.00019447,2]
[373876542,1753134650050,-460.0,0.00019447,2]
[373876544,1753134650060,-460.0,0.00019447,2]
[373876546,1753134650070,-460.0,0.00019447,2]
[373876548,1753134650079,-460.0,0.00019447,2]
[373876550,1753134650089,-460.0,0.00019447,2]
[373876553,1753134650099,-460.0,0.00019447,2]
[373876555,1753134650108,-460.0,0.00019447,2]
[373876557,1753134650117,-5119.13,0.00019447,2]
[373876559,1753134650126,-460.0,0.00019447,2]
[373876561,1753134650135,-860.28,0.00019447,2]
[373876562,1753134650145,-526.7,0.00019447,2]
[373876565,1753134650154,-460.0,0.00019447,2]
[373876567,1753134650163,-460.0,0.00019447,2]
[373876569,1753134650173,-460.0,0.00019447,2]
[373876571,1753134650182,-460.0,0.00019447,2]
[373876572,1753134650195,-460.0,0.00019447,2]
[373876574,1753134650204,-460.0,0.00019447,2]
[373876577,1753134650214,-3341.03,0.00019447,2]
[373876579,1753134650223,-460.0,0.00019447,2]
[373876581,1753134650233,-155.48,0.00019447,2]
[373876583,1753134650243,-460.0,0.00019447,2]
[373876585,1753134650252,-460.0,0.00019447,2]
[373876587,1753134650262,-5611.54,0.00019447,2]
[373876589,1753134650274,-200.0,0.00019447,2]
[373876591,1753134650283,-460.0,0.00019447,2]
[373876593,1753134650292,-460.0,0.00019447,2]
[373876595,1753134650302,-1931.57,0.00019447,2]
[373876597,1753134650311,-518.67455594,0.00019447,2]
[373876599,1753134650321,-460.0,0.00019447,2]
[373876601,1753134650331,-460.0,0.00019447,2]
[373876603,1753134650340,-460.0,0.00019447,2]
[373876605,1753134650349,-460.0,0.00019447,2]
[373876607,1753134650359,-460.0,0.00019447,2]
[373876609,1753134650368,-653.67,0.00019447,2]
[373876611,1753134650378,-479.4988426,0.00019447,2]
[373876612,1753134650387,-460.0,0.00019447,2]
[373876615,1753134650396,-472.15610728,0.00019447,2]
[373876617,1753134650405,-296.72664884,0.00019447,2]
[373876619,1753134650415,-460.0,0.00019447,2]
[373876621,1753134650425,-460.0,0.00019447,2]
[373876623,1753134650434,-460.0,0.00019447,2]
[373876625,1753134650444,-151.0,0.000195,2]
[373876627,1753134650454,-460.0,0.00019511,2]
[373876629,1753134650464,-2643.86,0.00019511,2]
[373876631,1753134650473,-480.64364207,0.0001952,2]
[373876633,1753134650482,-460.0,0.0001952,2]
[373876635,1753134650492,-460.0,0.0001952,2]
[373876637,1753134650501,-460.0,0.0001952,2]
[373876639,1753134650510,-460.0,0.0001952,2]
[373876641,1753134650519,-460.0,0.0001952,2]
[373876643,1753134650529,-460.0,0.0001952,2]
[373876645,1753134650538,-460.0,0.0001952,2]
[373876653,1753134650611,-460.0,0.0001952,2]
[373876656,1753134650620,-460.0,0.0001952,2]
[373876658,1753134650630,-460.0,0.0001952,2]
[373876660,1753134650640,-460.0,0.0001952,2]
[373876662,1753134650649,-460.0,0.0001952,2]
[373876664,1753134650658,-460.0,0.0001952,2]
[373876666,1753134650668,-460.0,0.0001952,2]
[373876668,1753134650678,-460.0,0.0001952,2]
[373876670,1753134650687,-460.0,0.0001952,2]
[373876672,1753134650697,-460.0,0.0001952,2]
[373876674,1753134650706,-301.97518595,0.0001952,2]
[373876676,1753134650716,-383.11719138,0.0001952,2]
[373876700,1753134650926,-460.0,0.00018898,2]
[373876702,1753134650936,-460.0,0.00018899,2]
[373876704,1753134650945,-76.88280862,0.0001952,2]
[373876706,1753134650954,-460.0,0.0001952,2]
[373876708,1753134650963,-460.0,0.0001952,2]
[373876710,1753134650973,-460.0,0.0001952,2]
[373876712,1753134650982,-151.0,0.0001952,2]
[373876714,1753134650991,-460.0,0.0001952,2]
[373876716,1753134651000,-165.886091,0.0001952,2]
[373876718,1753134651010,-460.0,0.0001952,2]
[373876720,1753134651019,-460.0,0.0001952,2]
[373876722,1753134651028,-460.0,0.0001952,2]
[373876724,1753134651037,-460.0,0.0001952,2]
[373876726,1753134651046,-460.0,0.0001952,2]
[373876728,1753134651055,-460.0,0.0001952,2]
[373876730,1753134651064,-460.0,0.0001952,2]
[373876732,1753134651073,-460.0,0.0001952,2]
[373876734,1753134651083,-460.0,0.0001952,2]
[373876736,1753134651092,-909.67,0.0001952,2]
[373876738,1753134651101,-460.0,0.0001952,2]
[373876740,1753134651111,-460.0,0.0001952,2]
[373876742,1753134651120,-575.14,0.0001952,2]
[373876744,1753134651128,-460.0,0.0001952,2]
[373876746,1753134651137,-460.0,0.0001952,2]
[373876748,1753134651146,-1184.29,0.0001952,2]
[373876750,1753134651155,-460.0,0.0001952,2]
[373876752,1753134651165,-460.0,0.0001952,2]
[373876754,1753134651173,-542.63967015,0.0001952,2]
[373876756,1753134651183,-460.0,0.0001952,2]
[373876758,1753134651195,-460.0,0.0001952,2]
[373876760,1753134651203,-460.0,0.0001952,2]
[373876762,1753134651213,-460.0,0.0001952,2]
[373876764,1753134651221,-460.0,0.0001952,2]
[373876766,1753134651233,-279.41520956,0.0001952,2]
[373876769,1753134651248,-196.47535485,0.0001952,2]
[373876771,1753134651258,-679.39,0.0001952,2]
[373876773,1753134651268,-460.0,0.0001952,2]
[373876775,1753134651278,-460.0,0.0001952,2]
[373876777,1753134651287,-460.0,0.0001952,2]
[373876779,1753134651295,-460.0,0.0001952,2]
[373876781,1753134651304,-460.0,0.0001952,2]
[373876783,1753134651314,-460.0,0.0001952,2]
[373876785,1753134651323,-460.0,0.0001952,2]
[373876787,1753134651332,-460.0,0.0001952,2]
[373876789,1753134651341,-591.53504124,0.0001952,2]
[373876791,1753134651352,-460.0,0.0001952,2]
[373876793,1753134651361,-474.4,0.0001952,2]
[373876795,1753134651370,-460.0,0.0001952,2]
[373876797,1753134651379,-460.0,0.0001952,2]
[373876799,1753134651388,-460.0,0.0001952,2]
[373876801,1753134651398,-460.0,0.0001952,2]
[373876803,1753134651407,-460.0,0.0001952,2]
[373876805,1753134651417,-1137.46,0.0001952,2]
[373876807,1753134651426,-460.0,0.0001952,2]
[373876809,1753134651435,-1415.19,0.0001952,2]
[373876811,1753134651446,-460.0,0.0001952,2]
[373876813,1753134651455,-8102.90121118,0.00019521,2]
[373876823,1753134651534,-460.0,0.00019521,2]
[373876825,1753134651543,-460.0,0.00019521,2]
[373876827,1753134651553,-460.0,0.00019521,2]
[373876829,1753134651562,-460.0,0.00019521,2]
[373876831,1753134651571,-411.8078171,0.00019521,2]
[373876833,1753134651580,-460.0,0.00019521,2]
[373876835,1753134651589,-460.0,0.00019521,2]
[373876837,1753134651598,-460.0,0.00019521,2]
[373876839,1753134651607,-588.58587348,0.00019521,2]
[373876841,1753134651617,-188.86749796,0.00019521,2]
[373876842,1753134651626,-462.18883429,0.00019521,2]
[373876844,1753134651635,-460.0,0.00019521,2]
[373876846,1753134651644,-460.0,0.00019521,2]
[373876848,1753134651653,-460.0,0.00019521,2]
[373876850,1753134651662,-151.0,0.00019521,2]
[373876852,1753134651672,-500.0,0.00019521,2]
[373876854,1753134651681,-151.0,0.00019521,2]
[373876856,1753134651690,-460.0,0.00019521,2]
[373876858,1753134651699,-460.0,0.00019521,2]
[373876860,1753134651708,-460.0,0.00019521,2]
[373876862,1753134651717,-482.27,0.00019521,2]
[373876864,1753134651727,-888.49,0.00019521,2]
[373876866,1753134651737,-460.0,0.00019521,2]
[373876868,1753134651746,-795.19,0.00019521,2]
[373876870,1753134651755,-624.36,0.00019521,2]
[373876872,1753134651765,-460.0,0.00019521,2]
[373876874,1753134651774,-466.88092509,0.00019522,2]
[373876876,1753134651784,-177.32583119,0.00019522,2]
[373876878,1753134651793,-460.0,0.00019522,2]
[373876880,1753134651803,-180.0,0.00019538,2]
[373876882,1753134651812,-151.862641,0.00019615,2]
[373876884,1753134651821,-155.795771,0.00019615,2]
[373876886,1753134651830,-155.795771,0.00019615,2]
[373876888,1753134651839,-151.0,0.00019615,2]
[373876890,1753134651849,-151.0,0.00019615,2]
[373876892,1753134651858,-366.259307,0.00019615,2]
[373876894,1753134651868,-366.259307,0.00019615,2]
[373876896,1753134651877,-151.0,0.00019615,2]
[373876898,1753134651887,-151.0,0.00019615,2]
[373876900,1753134651896,-151.0,0.00019615,2]
[373876902,1753134651906,-151.0,0.00019615,2]
[373876904,1753134651916,-1453.004655,0.00019615,2]
[373876906,1753134651925,-1453.004655,0.00019615,2]
[373876908,1753134651935,-411.05033,0.00019615,2]
[373876910,1753134651944,-411.05033,0.00019615,2]
[373876912,1753134651954,-500.0,0.00019615,2]
[373876914,1753134651965,-888.49,0.00019615,2]
[373876916,1753134651975,-324.0,0.00019615,2]
[373876918,1753134651984,-460.0,0.0001962,2]
[373876920,1753134651993,-460.0,0.0001962,2]
[373876922,1753134652003,-105.62856576,0.0001962,2]
[373876956,1753134652331,-460.0,0.00018899,2]
[373876959,1753134652347,-152.24635668,0.00018899,2]
[373876961,1753134652361,-460.0,0.00018899,2]
[373876964,1753134652375,-460.0,0.00019075,2]
[373876966,1753134652389,-552.61431351,0.00019214,2]
[373876969,1753134652404,-354.37143424,0.0001962,2]
[373876971,1753134652417,-151.0,0.0001962,2]
[373876974,1753134652431,-460.0,0.0001962,2]
[373876976,1753134652445,-460.0,0.0001962,2]
[373876979,1753134652459,-151.0,0.0001962,2]
[373876981,1753134652474,-211.4,0.0001962,2]
[373876984,1753134652489,-211.4,0.0001962,2]
[373876986,1753134652502,-460.0,0.0001962,2]
[373876988,1753134652516,-151.0,0.0001962,2]
[373876991,1753134652530,-460.0,0.0001962,2]
[373876993,1753134652545,-460.0,0.0001962,2]
[373876995,1753134652556,-460.0,0.0001962,2]
[373876997,1753134652566,-460.0,0.0001962,2]
[373877000,1753134652576,-460.0,0.0001962,2]
[373877001,1753134652586,-460.0,0.0001962,2]
[373877004,1753134652595,-460.0,0.0001962,2]
[373877005,1753134652605,-460.0,0.0001962,2]
[373877007,1753134652615,-609.570089,0.0001962,2]
[373877009,1753134652624,-460.0,0.0001962,2]
[373877011,1753134652634,-322.13520045,0.0001962,2]
[373877014,1753134652646,-137.86479955,0.0001962,2]
[373877016,1753134652657,-460.0,0.0001962,2]
[373877018,1753134652666,-460.0,0.0001962,2]
[373877020,1753134652676,-151.0,0.0001962,2]
[373877022,1753134652685,-460.0,0.0001962,2]
[373877024,1753134652694,-460.0,0.0001962,2]
[373877041,1753134652812,-460.0,0.0001962,2]
[373877044,1753134652874,-151.0,0.0001962,2]
[373877046,1753134652884,-463.38520427,0.0001962,2]
[373877048,1753134652893,-151.0,0.0001962,2]
[373877050,1753134652902,-460.0,0.0001962,2]
[373877052,1753134652911,-460.0,0.0001962,2]
[373877053,1753134652920,-460.0,0.0001962,2]
[373877055,1753134652929,-460.0,0.0001962,2]
[373877057,1753134652938,-460.0,0.0001962,2]
[373877059,1753134652948,-460.0,0.0001962,2]
[373877061,1753134652957,-460.0,0.0001962,2]
[373877063,1753134652967,-611.22,0.0001962,2]
[373877065,1753134652977,-460.0,0.0001962,2]
[373877067,1753134652987,-460.0,0.0001962,2]
[373877069,1753134652997,-460.0,0.0001962,2]
[373877071,1753134653006,-466.40297629,0.0001962,2]
[373877073,1753134653016,-460.0,0.0001962,2]
[373877075,1753134653025,-460.0,0.0001962,2]
[373877077,1753134653035,-460.0,0.0001962,2]
[373877079,1753134653044,-460.0,0.0001962,2]
[373877081,1753134653053,-460.0,0.0001962,2]
[373877083,1753134653062,-460.0,0.0001962,2]
[373877085,1753134653072,-460.0,0.0001962,2]
[373877087,1753134653081,-460.0,0.0001962,2]
[373877088,1753134653090,-460.0,0.0001962,2]
[373877090,1753134653100,-460.0,0.0001962,2]
[373877092,1753134653109,-460.0,0.0001962,2]
[373877094,1753134653120,-460.0,0.0001962,2]
[373877096,1753134653129,-460.0,0.0001962,2]
[373877098,1753134653138,-1505.62,0.0001962,2]
[373877100,1753134653148,-460.0,0.0001962,2]
[373877102,1753134653158,-460.0,0.0001962,2]
[373877104,1753134653167,-460.0,0.0001962,2]
[373877106,1753134653176,-120.80192371,0.0001962,2]
[373877133,1753134653448,-150.0,0.00018455,2]
[373877135,1753134653459,-460.0,0.00018899,2]
[373877137,1753134653469,-117.86384231,0.00019349,2]
[373877139,1753134653480,-342.13615769,0.00019349,2]
[373877141,1753134653490,-339.19807629,0.0001962,2]
[373877143,1753134653500,-801.0,0.0001962,2]
[373877145,1753134653510,-460.0,0.0001962,2]
[373877147,1753134653519,-460.0,0.0001962,2]
[373877149,1753134653530,-460.0,0.0001962,2]
[373877151,1753134653539,-460.0,0.0001962,2]
[373877153,1753134653548,-460.0,0.0001962,2]
[373877154,1753134653558,-460.0,0.0001962,2]
[373877156,1753134653567,-460.0,0.0001962,2]
[373877158,1753134653576,-460.0,0.0001962,2]
[373877160,1753134653585,-460.0,0.0001962,2]
[373877162,1753134653594,-460.0,0.0001962,2]
[373877164,1753134653604,-460.0,0.0001962,2]
[373877166,1753134653614,-460.0,0.0001962,2]
[373877168,1753134653623,-460.0,0.0001962,2]
[373877170,1753134653632,-411.05033,0.0001962,2]
[373877172,1753134653642,-460.0,0.0001962,2]
[373877174,1753134653651,-411.05033,0.0001962,2]
[373877176,1753134653660,-460.0,0.0001962,2]
[373877178,1753134653670,-460.0,0.0001962,2]
[373877180,1753134653679,-650.48,0.0001962,2]
[373877182,1753134653689,-460.0,0.0001962,2]
[373877184,1753134653698,-460.0,0.0001962,2]
[373877186,1753134653707,-460.0,0.0001962,2]
[373877188,1753134653716,-460.0,0.0001962,2]
[373877190,1753134653726,-460.0,0.0001962,2]
[373877192,1753134653736,-151.0,0.0001962,2]
[373877194,1753134653745,-460.0,0.0001962,2]
[373877196,1753134653754,-460.0,0.0001962,2]
[373877197,1753134653763,-460.0,0.0001962,2]
[373877199,1753134653773,-460.0,0.0001962,2]
[373877201,1753134653782,-460.0,0.0001962,2]
[373877203,1753134653791,-460.0,0.0001962,2]
[373877205,1753134653800,-460.0,0.0001962,2]
[373877207,1753134653810,-460.0,0.0001962,2]
[373877209,1753134653819,-816.67,0.0001962,2]
[373877211,1753134653828,-460.0,0.0001962,2]
[373877213,1753134653837,-460.0,0.0001962,2]
[373877215,1753134653846,-460.0,0.0001962,2]
[373877217,1753134653856,-460.0,0.0001962,2]
[373877219,1753134653866,-464.89812185,0.0001962,2]
[373877221,1753134653875,-460.0,0.0001962,2]
[373877223,1753134653884,-460.0,0.0001962,2]
[373877225,1753134653893,-460.0,0.0001962,2]
[373877226,1753134653902,-1746.1,0.0001962,2]
[373877228,1753134653911,-460.0,0.0001962,2]
[373877230,1753134653921,-460.0,0.0001962,2]
[373877232,1753134653930,-460.0,0.0001962,2]
[373877234,1753134653940,-460.0,0.0001962,2]
[373877236,1753134653950,-460.0,0.0001962,2]
[373877238,1753134653959,-460.0,0.0001962,2]
[373877240,1753134653969,-793.14,0.0001962,2]
[373877242,1753134653978,-460.0,0.0001962,2]
[373877244,1753134653987,-460.0,0.0001962,2]
[373877246,1753134653996,-460.0,0.0001962,2]
[373877248,1753134654005,-460.0,0.0001962,2]
[373877250,1753134654015,-460.0,0.0001962,2]
[373877252,1753134654024,-1620.39,0.0001962,2]
[373877253,1753134654033,-460.85670122,0.00019621,2]
[373877255,1753134654042,-1000.0,0.00019621,2]
[373877257,1753134654051,-502.5133173,0.00019621,2]
[373877259,1753134654061,-1000.0,0.00019621,2]
[373877261,1753134654070,-1000.0,0.00019621,2]
[373877263,1753134654080,-1000.0,0.00019621,2]
[373877264,1753134654089,-1000.0,0.00019621,2]
[373877265,1753134654099,-500.0,0.00019621,2]
[373877266,1753134654108,-1000.0,0.00019621,2]
[373877267,1753134654119,-151.0,0.00019621,2]
[373877268,1753134654128,-151.0,0.00019621,2]
[373877269,1753134654138,-224.26254,0.00019621,2]
[373877270,1753134654148,-224.26254,0.00019621,2]
[373877271,1753134654157,-151.0,0.00019621,2]
[373877272,1753134654166,-151.0,0.00019621,2]
[373877273,1753134654176,-151.0,0.00019621,2]
[373877274,1753134654186,-151.0,0.00019621,2]
[373877275,1753134654197,-228.643784,0.00019621,2]
[373877276,1753134654206,-366.259307,0.00019621,2]
[373877277,1753134654216,-366.259307,0.00019621,2]
[373877278,1753134654226,-151.0,0.00019621,2]
[373877279,1753134654235,-266.59701,0.00019621,2]
[373877280,1753134654244,-1453.004655,0.00019621,2]
[373877281,1753134654254,-1453.004655,0.00019621,2]
[373877282,1753134654265,-460.0,0.00019621,2]
[373877283,1753134654275,-460.0,0.00019621,2]
[373877284,1753134654285,-888.49,0.00019621,2]
[373877285,1753134654295,-460.0,0.00019621,2]
[373877286,1753134654304,-151.0,0.00019622,2]
[373877288,1753134654314,-151.0,0.00019622,2]
[373877289,1753134654323,-155.795771,0.00019622,2]
[373877291,1753134654332,-155.795771,0.00019622,2]
[373877293,1753134654342,-279.031985,0.00019622,2]
[373877295,1753134654351,-279.031985,0.00019622,2]
[373877297,1753134654361,-460.0,0.00019622,2]
[373877299,1753134654370,-460.0,0.00019622,2]
[373877301,1753134654379,-460.0,0.00019622,2]
[373877303,1753134654388,-293.517465,0.00019622,2]
[373877305,1753134654398,-4298.67,0.00019622,2]
[373877307,1753134654408,-1234.75,0.00019622,2]
[373877309,1753134654417,-460.0,0.00019622,2]
[373877311,1753134654426,-1369.44,0.00019622,2]
[373877313,1753134654436,-151.0,0.00019623,2]
[373877315,1753134654445,-153.030366,0.00019623,2]
[373877317,1753134654454,-483.26597855,0.00019623,2]
[373877319,1753134654463,-272.910868,0.00019623,2]
[373877321,1753134654472,-151.0,0.00019623,2]
[373877323,1753134654481,-211.4,0.00019623,2]
[373877325,1753134654491,-211.4,0.00019623,2]
[373877327,1753134654500,-151.0,0.00019623,2]
[373877329,1753134654510,-273.131354,0.00019623,2]
[373877330,1753134654519,-411.05033,0.00019623,2]
[373877332,1753134654528,-411.05033,0.00019623,2]
[373877334,1753134654538,-2344.26,0.00019623,2]
[373877336,1753134654547,-460.0,0.00019623,2]
[373877339,1753134654557,-1376.03,0.00019623,2]
[373877340,1753134654566,-460.0,0.00019623,2]
[373877342,1753134654575,-1715.88,0.00019623,2]
[373877344,1753134654585,-191.951833,0.00019624,2]
[373877346,1753134654594,-151.0,0.00019624,2]
[373877348,1753134654603,-888.49,0.00019634,2]
[373877350,1753134654614,-1000.0,0.00019697,2]
[373877353,1753134654624,-151.0,0.000197,2]
[373877354,1753134654633,-151.0,0.00019706,2]
[373877356,1753134654643,-151.0,0.00019706,2]
[373877358,1753134654652,-224.26254,0.00019706,2]
[373877360,1753134654661,-224.26254,0.00019706,2]
[373877362,1753134654670,-151.0,0.00019706,2]
[373877364,1753134654679,-151.0,0.00019717,2]
[373877366,1753134654689,-151.0,0.00019717,2]
[373877368,1753134654699,-151.0,0.00019717,2]
[373877370,1753134654708,-366.259307,0.00019717,2]
[373877372,1753134654717,-366.259307,0.00019717,2]
[373877374,1753134654727,-151.0,0.00019717,2]
[373877376,1753134654736,-1453.004655,0.00019717,2]
[373877378,1753134654745,-1453.004655,0.00019717,2]
[373877380,1753134654754,-460.0,0.0001972,2]
[373877382,1753134654763,-460.0,0.0001972,2]
[373877384,1753134654774,-488.33,0.0001972,2]
[373877386,1753134654783,-542.3,0.0001972,2]
[373877388,1753134654792,-2702.83,0.0001972,2]
[373877390,1753134654802,-460.0,0.00019721,2]
[373877392,1753134654812,-460.0,0.00019721,2]
[373877394,1753134654821,-460.0,0.00019721,2]
[373877396,1753134654831,-460.0,0.00019721,2]
[373877398,1753134654840,-460.0,0.00019721,2]
[373877400,1753134654850,-460.0,0.00019721,2]
[373877402,1753134654861,-460.0,0.00019721,2]
[373877418,1753134655003,-460.0,0.00019721,2]
[373877420,1753134655013,-460.0,0.00019721,2]
[373877422,1753134655022,-240.3396799,0.00019721,2]
[373877424,1753134655032,-5119.13,0.00019721,2]
[373877426,1753134655042,-860.28,0.00019721,2]
[373877428,1753134655052,-526.7,0.00019721,2]
[373877430,1753134655062,-460.0,0.00019721,2]
[373877432,1753134655072,-460.0,0.00019721,2]
[373877434,1753134655082,-460.0,0.00019721,2]
[373877436,1753134655091,-460.0,0.00019721,2]
[373877438,1753134655101,-460.0,0.00019721,2]
[373877440,1753134655119,-460.0,0.00019721,2]
[373877442,1753134655128,-3341.03,0.00019721,2]
[373877444,1753134655138,-460.0,0.00019721,2]
[373877446,1753134655147,-460.0,0.00019721,2]
[373877448,1753134655156,-460.0,0.00019721,2]
[373877450,1753134655166,-5611.54,0.00019721,2]
[373877452,1753134655176,-460.0,0.00019721,2]
[373877454,1753134655186,-460.0,0.00019721,2]
[373877456,1753134655198,-1931.57,0.00019721,2]
[373877458,1753134655208,-460.0,0.00019721,2]
[373877460,1753134655218,-460.0,0.00019721,2]
[373877462,1753134655227,-653.67,0.00019721,2]
[373877464,1753134655238,-460.0,0.00019721,2]
[373877466,1753134655248,-460.0,0.00019721,2]
[373877468,1753134655259,-460.0,0.00019721,2]
[373877471,1753134655269,-460.0,0.00019721,2]
[373877473,1753134655279,-8102.90121118,0.00019728,2]
[373877474,1753134655288,-460.0,0.00019785,2]
[373877477,1753134655297,-2643.86,0.00019785,2]
[373877478,1753134655307,-460.0,0.00019794,2]
[373877480,1753134655317,-460.0,0.00019794,2]
[373877482,1753134655326,-543.88,0.00019794,2]
[373877485,1753134655336,-460.0,0.00019794,2]
[373877486,1753134655346,-460.0,0.00019794,2]
[373877489,1753134655357,-517.5,0.00019794,2]
[373877491,1753134655367,-460.0,0.00019794,2]
[373877493,1753134655376,-460.0,0.00019794,2]
[373877494,1753134655385,-460.0,0.00019794,2]
[373877496,1753134655395,-460.0,0.00019794,2]
[373877498,1753134655404,-460.0,0.00019794,2]
[373877500,1753134655414,-460.0,0.00019794,2]
[373877502,1753134655423,-460.0,0.00019794,2]
[373877504,1753134655432,-460.0,0.00019794,2]
[373877506,1753134655441,-460.0,0.00019794,2]
[373877508,1753134655451,-460.0,0.00019794,2]
[373877510,1753134655460,-460.0,0.00019794,2]
[373877512,1753134655470,-460.0,0.00019794,2]
[373877514,1753134655479,-460.0,0.00019794,2]
[373877516,1753134655489,-460.0,0.00019794,2]
[373877518,1753134655499,-460.0,0.00019794,2]
[373877520,1753134655508,-460.0,0.00019794,2]
[373877522,1753134655518,-460.0,0.00019794,2]
[373877524,1753134655527,-909.67,0.00019794,2]
[373877526,1753134655536,-500.0,0.00019794,2]
[373877529,1753134655550,-460.0,0.00019794,2]
[373877531,1753134655560,-575.14,0.00019794,2]
[373877533,1753134655571,-460.0,0.00019794,2]
[373877535,1753134655581,-460.0,0.00019794,2]
[373877537,1753134655591,-1184.29,0.00019794,2]
[373877539,1753134655600,-460.0,0.00019794,2]
[373877541,1753134655610,-460.0,0.00019794,2]
[373877543,1753134655620,-460.0,0.00019794,2]
[373877545,1753134655629,-389.74232862,0.00019794,2]
[373877547,1753134655639,-460.0,0.00019794,2]
[373877549,1753134655648,-460.0,0.00019794,2]
[373877551,1753134655658,-679.39,0.00019794,2]
[373877553,1753134655668,-460.0,0.00019794,2]
[373877555,1753134655678,-460.0,0.00019794,2]
[373877557,1753134655687,-579.7314776,0.00019794,2]
[373877559,1753134655697,-460.0,0.00019794,2]
[373877561,1753134655707,-460.0,0.00019794,2]